fUSD/lending_fUSD_20260202
["ID","MTS","AMOUNT","RATE_DAILY","PERIOD"]
[404306997,1770052242127,-500.0,0.00013973,2]
[404306998,1770052242136,-500.0,0.00013973,2]
[404306999,1770052242146,-500.0,0.00013973,2]
[404307000,1770052242155,-500.0,0.00013973,2]
[404307001,1770052242164,-500.0,0.00013973,2]
[404307002,1770052242174,-200.896366,0.00014,2]
[404307003,1770052242184,-500.0,0.00014019,2]
[404307004,1770052242194,-617.4,0.00014019,2]
[404307005,1770052242203,-313.45864486,0.00014255,2]
[404307006,1770052242213,-500.0,0.00014256,2]
[404307007,1770052242223,-200.0,0.00014256,2]
[404307008,1770052242233,-34965.56083801,0.00014298,2]
[404307009,1770052242242,-24162.98599796,0.00014298,2]
[404307010,1770052242252,-302.32,0.00014371,2]
[404307011,1770052242262,-1000.0,0.00014521,2]
[404307012,1770052242271,-1000.0,0.00014521,2]
[404307013,1770052242281,-1000.0,0.00014521,2]
[404307014,1770052242291,-1000.0,0.00014521,2]
[404307015,1770052242300,-723.77841226,0.00014521,2]
[404307016,1770052242313,-1000.0,0.00014521,2]
[404307017,1770052242323,-233.72893135,0.00014521,2]
[404307018,1770052242333,-1000.0,0.00014521,2]
[404307019,1770052242343,-156.95111861,0.00014521,2]
[404307020,1770052242356,-1000.0,0.00014521,2]
[404307021,1770052242367,-501.171316,0.00014521,2]
[404307022,1770052242376,-1000.0,0.00014521,2]
[404307023,1770052242386,-1037.01217783,0.00014521,2]
[404307024,1770052242396,-1020.60707483,0.00014521,2]
[404307025,1770052242406,-548.87500636,0.00014521,2]
[404307026,1770052242416,-1000.0,0.00014521,2]
[404307027,1770052242426,-501.77480883,0.00014521,2]
[404307028,1770052242435,-1000.0,0.00014521,2]
[404307029,1770052242446,-152.81544497,0.00014521,2]
[404307030,1770052242456,-911.8365552,0.00014521,2]
[404307031,1770052242466,-1000.0,0.00014521,2]
[404307032,1770052242475,-546.2635897,0.00014521,2]
[404307033,1770052242485,-1000.0,0.00014521,2]
[404307034,1770052242494,-1000.0,0.00014604,2]
[404307035,1770052242504,-2437.2784513,0.00014654,2]
[404307036,1770052242514,-6432.01639449,0.00014654,2]
[404307037,1770052242524,-11346.83933115,0.00014654,2]
[404307038,1770052242533,-16974.19302951,0.00014654,2]
[404307039,1770052242543,-836.83007605,0.00014658,2]
[404307040,1770052242552,-500.0,0.00014804,2]
[404307041,1770052242565,-222.88299738,0.00014804,2]
[404307042,1770052242575,-151.0,0.00014862,2]
[404307043,1770052242585,-151.0,0.00014864,2]
[404307044,1770052242595,-151.0,0.00014864,2]
[404307045,1770052242604,-151.0,0.00014864,2]
[404307046,1770052242614,-151.0,0.00014864,2]
[404307047,1770052242623,-151.0,0.00014864,2]
[404307048,1770052242633,-151.0,0.00014864,2]
[404307049,1770052242642,-151.0,0.00014883,2]
[404307050,1770052242652,-151.0,0.00014883,2]
[404307051,1770052242665,-256.85,0.00014883,2]
[404307052,1770052242675,-151.0,0.00014883,2]
[404307053,1770052242684,-151.0,0.00014883,2]
[404307054,1770052242694,-151.0,0.00014883,2]
[404307055,1770052242705,-150.0,0.00014893,5]
[404307056,1770052242715,-179.5507367,0.000149,2]
[404307057,1770052242725,-736.0,0.00014992,2]
[404307058,1770052242737,-302.32,0.00014996,2]
[404307059,1770052242751,-250.0,0.00015,2]
[404307060,1770052242760,-34965.56083801,0.00015018,2]
[404307061,1770052242770,-24162.98599796,0.00015018,2]
[404307063,1770052242780,-155.0,0.00015067,2]
[404307064,1770052242789,-506.79391477,0.00015068,2]
[404307065,1770052242799,-1500.0,0.00015068,2]
[404307066,1770052242810,-617.67942522,0.00015068,2]
[404307067,1770052242820,-1500.0,0.00015068,2]
[404307068,1770052242829,-1500.0,0.00015068,2]
[404307069,1770052242839,-453.96398478,0.00015068,2]
[404307070,1770052242848,-582.73923754,0.00015068,2]
[404307071,1770052242858,-1500.0,0.00015068,2]
[404307072,1770052242867,-1013.1611986,0.00015068,2]
[404307073,1770052242878,-1500.0,0.00015068,2]
[404307074,1770052242888,-1500.0,0.00015068,2]
[404307075,1770052242897,-854.38080813,0.00015068,2]
[404307076,1770052242907,-595.4,0.00015171,2]
[404307077,1770052242916,-213.09371033,0.00015171,2]
[404307078,1770052242927,-500.0,0.00015171,2]
[404307079,1770052242936,-500.0,0.00015171,2]
[404307080,1770052242946,-500.0,0.00015171,2]
[404307081,1770052242955,-1081.79,0.00015171,2]
[404307082,1770052242965,-500.0,0.00015171,2]
[404307083,1770052242975,-1017.42,0.00015171,2]
[404307084,1770052242985,-513.79,0.00015171,2]
[404307085,1770052242994,-520.18,0.00015171,2]
[404307086,1770052243004,-640.79,0.00015171,2]
[404307087,1770052243013,-500.0,0.00015171,2]
[404307088,1770052243023,-868.9,0.000152,2]
[404307089,1770052243033,-250.0,0.00015216,2]
[404307090,1770052243042,-773.23,0.00015254,2]
[404307091,1770052243052,-823.0,0.00015256,2]
[404307092,1770052243063,-3292.0,0.00015326,2]
[404307093,1770052243072,-500.0,0.00015352,2]
[404307094,1770052243082,-500.0,0.00015472,2]
[404307095,1770052243092,-617.4,0.00015472,2]
[404307096,1770052243101,-500.63586771,0.00015473,2]
[404307097,1770052243111,-500.46237197,0.00015473,2]
[404307098,1770052243120,-163.34993731,0.00015473,2]
[404307099,1770052243130,-163.12661798,0.00015473,2]
[404307100,1770052243139,-500.0,0.00015473,2]
[404307101,1770052243148,-500.0,0.00015473,2]
[404307102,1770052243158,-500.0,0.00015473,2]
[404307103,1770052243168,-500.0,0.00015473,2]
[404307104,1770052243178,-500.0,0.00015473,2]
[404307105,1770052243188,-500.0,0.00015473,2]
[404307106,1770052243198,-500.0,0.00015473,2]
[404307107,1770052243208,-500.0,0.00015473,2]
[404307108,1770052243218,-574.06272579,0.00015473,2]
[404307109,1770052243229,-500.0,0.00015473,2]
[404307110,1770052243239,-500.0,0.00015473,2]
[404307111,1770052243248,-500.0,0.00015473,2]
[404307112,1770052243257,-464.35211832,0.00015473,2]
[404307113,1770052243267,-151.07783782,0.00015473,2]
[404307114,1770052243276,-160.54295648,0.00015473,2]
[404307115,1770052243286,-486.90150068,0.00015473,2]
[404307116,1770052243295,-500.40906893,0.00015473,2]
[404307117,1770052243305,-500.0,0.00015473,2]
[404307118,1770052243316,-500.0,0.00015473,2]
[404307119,1770052243325,-500.0,0.00015473,2]
[404307120,1770052243335,-163.46067997,0.00015473,2]
[404307121,1770052243345,-500.0,0.00015473,2]
[404307122,1770052243354,-500.0,0.00015473,2]
[404307123,1770052243364,-200.70028911,0.00015473,2]
[404307124,1770052243373,-500.0,0.00015473,2]
[404307125,1770052243383,-500.0,0.00015473,2]
[404307126,1770052243392,-500.0,0.00015473,2]
[404307127,1770052243402,-500.0,0.00015473,2]
[404307128,1770052243411,-500.0,0.00015473,2]
[404307129,1770052243421,-336.43827265,0.00015473,2]
[404307130,1770052243430,-500.0,0.00015473,2]
[404307131,1770052243440,-500.0,0.00015473,2]
[404307132,1770052243449,-500.0,0.00015473,2]
[404307133,1770052243459,-500.0,0.00015473,2]
[404307134,1770052243469,-500.0,0.00015473,2]
[404307135,1770052243479,-500.0,0.00015473,2]
[404307136,1770052243489,-500.0,0.00015473,2]
[404307137,1770052243502,-500.41005015,0.00015473,2]
[404307138,1770052243512,-500.0,0.00015473,2]
[404307139,1770052243522,-522.30858015,0.00015473,2]
[404307142,1770052243531,-500.0,0.00015473,2]
[404307144,1770052243541,-500.0,0.00015473,2]
[404307145,1770052243550,-500.0,0.00015473,2]
[404307146,1770052243562,-161.45537985,0.00015473,2]
[404307147,1770052243572,-500.0,0.00015473,2]
[404307148,1770052243584,-500.6120606,0.00015473,2]
[404307150,1770052243594,-500.0,0.00015473,2]
[404307153,1770052243604,-500.0,0.00015473,2]
[404307156,1770052243614,-500.62768041,0.00015473,2]
[404307158,1770052243623,-559.67308476,0.00015473,2]
[404307160,1770052243633,-512.94754167,0.00015473,2]
[404307163,1770052243642,-500.0,0.00015473,2]
[404307165,1770052243652,-500.0,0.00015473,2]
[404307166,1770052243664,-500.0,0.00015473,2]
[404307167,1770052243673,-185.46503654,0.00015473,2]
[404307168,1770052243683,-500.0,0.00015473,2]
[404307169,1770052243692,-500.0,0.00015473,2]
[404307170,1770052243703,-550.09529227,0.00015473,2]
[404307171,1770052243712,-500.0,0.00015473,2]
[404307172,1770052243721,-500.0,0.00015473,2]
[404307173,1770052243730,-500.0,0.00015473,2]
[404307174,1770052243739,-565.00011393,0.00015473,2]
[404307175,1770052243748,-500.0,0.00015473,2]
[404307176,1770052243758,-500.0,0.00015473,2]
[404307177,1770052243767,-500.0,0.00015473,2]
[404307178,1770052243776,-500.0,0.00015473,2]
[404307179,1770052243787,-500.0,0.00015473,2]
[404307180,1770052243796,-500.0,0.00015473,2]
[404307181,1770052243805,-868.9,0.00015474,2]
[404307182,1770052243816,-773.23,0.00015528,2]
[404307183,1770052243826,-159.6584355,0.00015615,2]
[404307184,1770052243835,-1002.17701724,0.00015616,2]
[404307185,1770052243844,-1270.24622109,0.00015616,2]
[404307186,1770052243853,-812.26829567,0.00015616,2]
[404307187,1770052243862,-2000.0,0.00015616,2]
[404307188,1770052243872,-2000.0,0.00015616,2]
[404307189,1770052243881,-2000.0,0.00015616,2]
[404307190,1770052243893,-302.32,0.00015621,2]
[404307191,1770052243903,-456.97,0.00015736,2]
[404307192,1770052243992,-34965.56083801,0.00015739,2]
[404307193,1770052244001,-836.83007605,0.00015739,2]
[404307194,1770052244010,-24162.98599796,0.00015739,2]
[404307195,1770052244019,-868.9,0.00015748,2]
[404307196,1770052244028,-159.93,0.00015749,2]
[404307197,1770052244037,-10354.0,0.00015767,2]
[404307198,1770052244046,-180.11,0.00015792,2]
[404307199,1770052244056,-773.23,0.00015802,2]
[404307200,1770052244066,-500.0,0.000159,2]
[404307201,1770052244075,-5000.0,0.0001596,2]
[404307202,1770052244084,-200.0,0.00016,2]
[404307203,1770052244093,-769.8904873,0.00016021,2]
[404307204,1770052244102,-513.51105773,0.00016021,2]
[404307205,1770052244111,-1040.54063963,0.00016021,2]
[404307206,1770052244121,-1000.0,0.00016021,2]
[404307207,1770052244131,-843.37022852,0.00016021,2]
[404307208,1770052244140,-1000.0,0.00016021,2]
[404307209,1770052244149,-1000.0,0.00016021,2]
[404307210,1770052244158,-1000.0,0.00016021,2]
[404307211,1770052244167,-1000.0,0.00016021,2]
[404307212,1770052244177,-1000.0,0.00016021,2]
[404307213,1770052244186,-1000.0,0.00016021,2]
[404307214,1770052244195,-1000.0,0.00016021,2]
[404307215,1770052244204,-1000.0,0.00016021,2]
[404307216,1770052244214,-1000.0,0.00016021,2]
[404307217,1770052244223,-1000.0,0.00016021,2]
[404307218,1770052244232,-293.82457575,0.00016021,2]
[404307219,1770052244242,-1000.0,0.00016021,2]
[404307220,1770052244253,-826.63399032,0.00016021,2]
[404307221,1770052244263,-1000.0,0.00016021,2]
[404307222,1770052244272,-1000.0,0.00016021,2]
[404307223,1770052244282,-1003.32803614,0.00016021,2]
[404307224,1770052244291,-1000.0,0.00016021,2]
[404307225,1770052244300,-1000.0,0.00016021,2]
[404307226,1770052244310,-1000.0,0.00016021,2]
[404307227,1770052244319,-305.41786048,0.00016021,2]
[404307228,1770052244329,-1000.0,0.00016021,2]
[404307229,1770052244338,-371.34493106,0.00016021,2]
[404307230,1770052244347,-1000.0,0.00016021,2]
[404307231,1770052244356,-1000.0,0.00016021,2]
[404307232,1770052244366,-1082.33207666,0.00016021,2]
[404307233,1770052244375,-1000.0,0.00016021,2]
[404307234,1770052244384,-885.68955508,0.00016021,2]
[404307235,1770052244394,-501.6324076,0.00016021,2]
[404307236,1770052244403,-1000.0,0.00016021,2]
[404307237,1770052244413,-1000.0,0.00016021,2]
[404307238,1770052244423,-1000.0,0.00016021,2]
[404307239,1770052244434,-1000.0,0.00016021,2]
[404307240,1770052244443,-1000.0,0.00016021,2]
[404307241,1770052244452,-1000.0,0.00016021,2]
[404307242,1770052244461,-500.0,0.00016021,2]
[404307243,1770052244470,-500.40903786,0.00016021,2]
[404307244,1770052244479,-1000.0,0.00016021,2]
[404307245,1770052244488,-1000.0,0.00016021,2]
[404307246,1770052244498,-194.71422031,0.00016021,2]
[404307247,1770052244507,-1000.0,0.00016021,2]
[404307248,1770052244516,-988.5,0.00016022,2]
[404307249,1770052244526,-773.23,0.00016076,2]
[404307250,1770052244535,-2500.0,0.00016164,2]
[404307251,1770052244544,-1607.21812372,0.00016164,2]
[404307252,1770052244553,-2139.05832686,0.00016164,2]
[404307253,1770052244562,-266.53743456,0.00016186,2]
[404307254,1770052244571,-500.0,0.00016219,2]
[404307255,1770052244581,-617.4,0.00016219,2]
[404307256,1770052244591,-595.4,0.00016219,2]
[404307257,1770052244600,-595.4,0.00016219,2]
[404307258,1770052244609,-500.0,0.00016219,2]
[404307259,1770052244618,-500.0,0.00016219,2]
[404307260,1770052244627,-500.0,0.00016219,2]
[404307261,1770052244636,-500.0,0.00016219,2]
[404307262,1770052244645,-500.0,0.00016219,2]
[404307263,1770052244654,-500.0,0.00016219,2]
[404307264,1770052244665,-1081.79,0.00016219,2]
[404307265,1770052244675,-1081.79,0.00016219,2]
[404307267,1770052244683,-500.0,0.00016219,2]
[404307268,1770052244693,-500.0,0.00016219,2]
[404307270,1770052244703,-1017.42,0.00016219,2]
[404307272,1770052244712,-1017.42,0.00016219,2]
[404307273,1770052244721,-513.79,0.00016219,2]
[404307274,1770052244730,-513.79,0.00016219,2]
[404307275,1770052244739,-520.18,0.00016219,2]
[404307276,1770052244747,-520.18,0.00016219,2]
[404307277,1770052244756,-640.79,0.00016219,2]
[404307278,1770052244765,-640.79,0.00016219,2]
[404307279,1770052244774,-500.0,0.00016219,2]
[404307280,1770052244782,-500.0,0.00016219,2]
[404307281,1770052244792,-1000.0,0.00016227,2]
[404307282,1770052244801,-302.32,0.00016246,2]
[404307284,1770052244810,-500.0,0.00016323,2]
[404307286,1770052244819,-500.0,0.00016323,2]
[404307288,1770052244828,-500.0,0.00016323,2]
[404307290,1770052244837,-440.42527963,0.00016323,2]
[404307292,1770052244846,-617.4,0.00016323,2]
[404307294,1770052244855,-617.4,0.00016323,2]
[404307295,1770052244864,-617.4,0.00016323,2]
[404307297,1770052244873,-617.4,0.00016323,2]
[404307299,1770052244883,-617.56317558,0.00016323,2]
[404307301,1770052244892,-322.6107,0.00016345,2]
[404307303,1770052244901,-500.0,0.00016345,2]
[404307306,1770052244911,-250.0,0.00016345,2]
[404307307,1770052244920,-721.12765535,0.00016345,2]
[404307309,1770052244930,-500.0,0.00016345,2]
[404307311,1770052244939,-250.0,0.00016345,2]
[404307314,1770052244948,-500.0,0.00016345,2]
[404307316,1770052244958,-500.0,0.00016345,2]
[404307318,1770052244967,-250.0,0.00016345,2]
[404307320,1770052244976,-500.0,0.00016345,2]
[404307321,1770052244986,-250.0,0.00016345,2]
[404307324,1770052244995,-500.0,0.00016345,2]
[404307325,1770052245005,-250.0,0.00016345,2]
[404307328,1770052245014,-500.0,0.00016345,2]
[404307329,1770052245023,-250.0,0.00016345,2]
[404307332,1770052245033,-500.0,0.00016345,2]
[404307334,1770052245043,-500.0,0.00016345,2]
[404307336,1770052245053,-500.0,0.00016345,2]
[404307338,1770052245062,-500.0,0.00016345,2]
[404307340,1770052245071,-174.61919141,0.00016345,2]
[404307342,1770052245080,-1428.38747117,0.00016345,2]
[404307344,1770052245089,-209.40437684,0.00016345,2]
[404307346,1770052245098,-859.80605061,0.00016345,2]
[404307348,1770052245107,-276.99112213,0.00016345,2]
[404307350,1770052245116,-578.20924308,0.00016345,2]
[404307352,1770052245125,-209.40437684,0.00016345,2]
[404307354,1770052245134,-1176.0,0.00016374,2]
[404307356,1770052245143,-217.15233878,0.000164,2]
[404307357,1770052245151,-163.0,0.000164,2]
[404307359,1770052245160,-559.85,0.00016403,2]
[404307362,1770052245170,-155.0,0.00016436,2]
[404307363,1770052245179,-1894.56667805,0.00016438,2]
[404307364,1770052245188,-500.0,0.00016448,2]
[404307365,1770052245197,-225.18697532,0.00016455,2]
[404307366,1770052245207,-34965.56083801,0.00016459,2]
[404307367,1770052245216,-24162.98599796,0.00016459,2]
[404307368,1770052245226,-150.0,0.00016473,2]
[404307369,1770052245235,-159.6584355,0.00016482,2]
[404307370,1770052245244,-233.51889341,0.0001651,2]
[404307371,1770052245254,-242.15909246,0.00016565,2]
[404307372,1770052245263,-1501.43163729,0.00016568,2]
[404307373,1770052245272,-1001.04497332,0.00016568,2]
[404307374,1770052245287,-487.41342802,0.00016568,2]
[404307375,1770052245296,-503.70343212,0.00016568,2]
[404307376,1770052245306,-500.0,0.00016568,2]
[404307377,1770052245314,-1500.0,0.00016568,2]
[404307379,1770052245324,-252.19444213,0.00016568,2]
[404307380,1770052245334,-500.0,0.00016568,2]
[404307381,1770052245344,-1000.0,0.00016568,2]
[404307382,1770052245354,-764.91033221,0.00016568,2]
[404307383,1770052245364,-500.0,0.00016568,2]
[404307384,1770052245374,-408.63714551,0.00016568,2]
[404307385,1770052245384,-1003.56470175,0.00016568,2]
[404307386,1770052245393,-1003.30357537,0.00016568,2]
[404307387,1770052245403,-500.0,0.00016568,2]
[404307388,1770052245412,-1500.0,0.00016568,2]
[404307389,1770052245421,-500.0,0.00016568,2]
[404307390,1770052245431,-35759.0,0.00016592,2]
[404307391,1770052245440,-251.11897888,0.0001662,2]
[404307392,1770052245451,-22966.6833,0.00016654,2]
[404307393,1770052245461,-260.4103811,0.00016675,2]
[404307394,1770052245470,-500.0,0.00016685,2]
[404307395,1770052245480,-3000.0,0.00016712,2]
[404307396,1770052245490,-152.4,0.00016712,2]
[404307397,1770052245498,-839.0,0.0001672,2]
[404307398,1770052245508,-839.0,0.0001672,2]
[404307399,1770052245518,-270.0455652,0.0001673,2]
[404307400,1770052245528,-1152.0,0.00016756,2]
[404307401,1770052245537,-280.03725112,0.00016785,2]
[404307402,1770052245546,-1000.0,0.00016794,2]
[404307403,1770052245555,-836.83007605,0.00016819,2]
[404307404,1770052245565,-290.39862941,0.0001684,2]
[404307405,1770052245574,-4609.0,0.00016859,2]
[404307406,1770052245583,-456.97,0.00016868,2]
[404307407,1770052245593,-302.32,0.00016871,2]
[404307409,1770052245602,-500.0,0.00016872,2]
[404307411,1770052245611,-181.08010149,0.00016893,2]
[404307413,1770052245619,-1481.23780761,0.00016893,2]
[404307414,1770052245628,-217.15233878,0.00016893,2]
[404307416,1770052245637,-159.93,0.00016893,2]
[404307418,1770052245646,-301.1433787,0.00016895,2]
[404307419,1770052245657,-595.4,0.000169,2]
[404307420,1770052245666,-500.0,0.000169,2]
[404307421,1770052245675,-500.0,0.000169,2]
[404307422,1770052245684,-500.0,0.000169,2]
[404307423,1770052245693,-1081.79,0.000169,2]
[404307424,1770052245703,-500.0,0.000169,2]
[404307425,1770052245714,-1017.42,0.000169,2]
[404307426,1770052245725,-513.79,0.000169,2]
[404307427,1770052245735,-520.18,0.000169,2]
[404307428,1770052245744,-640.79,0.000169,2]
[404307429,1770052245754,-500.0,0.000169,2]
[404307430,1770052245763,-180.10076098,0.00016929,2]
[404307431,1770052245774,-180.26364618,0.00016962,2]
[404307432,1770052245783,-500.0,0.00016996,2]
[404307433,1770052245792,-595.4,0.00016999,2]
[404307434,1770052245802,-500.0,0.00016999,2]
[404307435,1770052245812,-500.0,0.00016999,2]
[404307436,1770052245821,-500.0,0.00016999,2]
[404307437,1770052245830,-1081.79,0.00016999,2]
[404307438,1770052245839,-500.0,0.00016999,2]
[404307439,1770052245848,-1017.42,0.00016999,2]
[404307440,1770052245857,-513.79,0.00016999,2]
[404307441,1770052245866,-520.18,0.00016999,2]
[404307442,1770052245875,-640.79,0.00016999,2]
[404307443,1770052245884,-500.0,0.00016999,2]
[404307444,1770052245894,-300.0,0.00017,2]
[404307445,1770052245903,-300.0,0.00017021,2]
[404307446,1770052245912,-2000.0,0.00017116,2]
[404307447,1770052245921,-257.09827192,0.00017124,2]
[404307448,1770052245930,-34965.56083801,0.0001718,2]
[404307449,1770052245939,-24162.98599796,0.0001718,2]
[404307450,1770052245948,-360.4,0.00017224,2]
[404307451,1770052245957,-180.29,0.00017224,2]
[404307452,1770052245966,-180.29,0.00017224,2]
[404307453,1770052245975,-1116.76,0.00017224,2]
[404307454,1770052245984,-360.5,0.00017224,2]
[404307455,1770052245993,-178.99,0.00017224,2]
[404307457,1770052246003,-1000.0,0.0001726,2]
[404307458,1770052246012,-2165.35985631,0.0001726,2]
[404307459,1770052246021,-5888.0,0.00017297,2]
[404307460,1770052246030,-4270.0,0.00017334,2]
[404307461,1770052246039,-159.6584355,0.0001735,2]
[404307462,1770052246048,-163.0,0.0001736,2]
[404307463,1770052246057,-839.0,0.0001736,2]
[404307464,1770052246066,-1410.0,0.0001736,2]
[404307465,1770052246076,-728.231,0.0001736,2]
[404307466,1770052246086,-1273.693,0.0001736,2]
[404307467,1770052246095,-251.0,0.0001736,2]
[404307468,1770052246104,-917.0,0.0001736,2]
[404307469,1770052246113,-1205.0,0.0001736,2]
[404307470,1770052246123,-1316.0,0.0001736,2]
[404307471,1770052246132,-2465.108,0.0001736,2]
[404307472,1770052246142,-568.0,0.0001736,2]
[404307473,1770052246151,-3264.919,0.0001736,2]
[404307474,1770052246160,-595.4,0.00017422,2]
[404307475,1770052246170,-280.89695506,0.00017422,2]
[404307476,1770052246180,-317.29293236,0.00017422,2]
[404307477,1770052246188,-500.0,0.00017422,2]
[404307478,1770052246198,-1081.79,0.00017422,2]
[404307479,1770052246207,-607.97214338,0.00017422,2]
[404307480,1770052246216,-1017.42,0.00017422,2]
[404307481,1770052246226,-513.79,0.00017422,2]
[404307482,1770052246236,-520.18,0.00017422,2]
[404307483,1770052246245,-640.79,0.00017422,2]
[404307484,1770052246254,-500.0,0.00017422,2]
[404307485,1770052246263,-187.78006525,0.00017441,2]
[404307486,1770052246273,-1536.04360649,0.00017441,2]
[404307487,1770052246282,-225.18697532,0.00017441,2]
[404307488,1770052246291,-23900.0,0.000175,6]
[404307489,1770052246301,-257.09827192,0.00017512,3]
[404307490,1770052246310,-389.0,0.00017513,2]
[404307491,1770052246319,-389.0,0.00017532,2]
[404307492,1770052246328,-1000.0,0.00017534,2]
[404307493,1770052246337,-500.0,0.00017544,2]
[404307494,1770052246346,-450.0,0.00017568,2]
[404307495,1770052246356,-389.0,0.00017589,2]
[404307496,1770052246365,-5888.0,0.00017598,2]
[404307497,1770052246375,-4700.0,0.000176,6]
[404307498,1770052246384,-420.0,0.00017631,2]
[404307499,1770052246393,-1062.88604996,0.0001764,2]
[404307500,1770052246403,-1081.239032,0.0001764,2]
[404307501,1770052246412,-935.55197693,0.0001764,2]
[404307502,1770052246423,-959.47407764,0.0001764,2]
[404307503,1770052246433,-4270.0,0.00017664,2]
[404307504,1770052246443,-2500.0,0.00017664,2]
[404307505,1770052246452,-839.0,0.0001768,2]
[404307506,1770052246462,-150.0,0.00017698,2]
[404307507,1770052246471,-500.0,0.00017698,2]
[404307508,1770052246480,-150.0,0.00017698,2]
[404307509,1770052246489,-500.0,0.00017698,2]
[404307510,1770052246499,-250.52896875,0.00017698,2]
[404307511,1770052246508,-150.0,0.00017698,2]
[404307512,1770052246517,-500.0,0.00017698,2]
[404307513,1770052246527,-864.0,0.00017698,2]
[404307514,1770052246537,-500.0,0.00017698,2]
[404307515,1770052246546,-150.0,0.00017698,2]
[404307516,1770052246555,-150.59152836,0.00017698,2]
[404307517,1770052246565,-500.0,0.00017698,2]
[404307518,1770052246574,-500.0,0.00017698,2]
[404307519,1770052246583,-1794.0,0.00017698,2]
[404307520,1770052246592,-500.0,0.00017698,2]
[404307521,1770052246601,-150.0,0.00017698,2]
[404307522,1770052246611,-150.0,0.00017698,2]
[404307523,1770052246621,-150.10178686,0.00017698,2]
[404307524,1770052246630,-150.8823375,0.00017698,2]
[404307525,1770052246639,-150.86853195,0.00017698,2]
[404307526,1770052246647,-500.0,0.00017698,2]
[404307527,1770052246657,-150.28399281,0.00017698,2]
[404307528,1770052246670,-500.0,0.00017698,2]
[404307529,1770052246679,-150.0,0.00017698,2]
[404307530,1770052246688,-150.0,0.00017698,2]
[404307532,1770052246697,-500.0,0.00017698,2]
[404307533,1770052246706,-500.0,0.00017698,2]
[404307534,1770052246716,-150.0,0.00017698,2]
[404307535,1770052246725,-150.0,0.00017698,2]
[404307536,1770052246735,-150.0,0.00017698,2]
[404307537,1770052246744,-500.0,0.00017698,2]
[404307538,1770052246753,-466.0,0.00017698,2]
[404307539,1770052246762,-500.0,0.00017698,2]
[404307540,1770052246771,-150.0,0.00017698,2]
[404307541,1770052246780,-4700.0,0.000177,6]
[404307542,1770052246789,-2844.0,0.000177,2]
[404307543,1770052246799,-334.5472959,0.00017714,2]
[404307544,1770052246808,-389.0,0.00017723,2]
[404307545,1770052246819,-166.03286464,0.00017753,2]
[404307546,1770052246828,-500.0,0.00017753,2]
[404307547,1770052246837,-150.0,0.00017753,2]
[404307548,1770052246846,-500.0,0.00017753,2]
[404307549,1770052246855,-500.0,0.00017753,2]
[404307550,1770052246865,-266.13840863,0.00017753,2]
[404307551,1770052246874,-864.0,0.00017753,2]
[404307552,1770052246884,-500.0,0.00017753,2]
[404307553,1770052246894,-150.0,0.00017753,2]
[404307554,1770052246904,-500.0,0.00017753,2]
[404307555,1770052246913,-500.0,0.00017753,2]
[404307556,1770052246922,-599.274,0.00017753,2]
[404307557,1770052246931,-150.0,0.00017753,2]
[404307558,1770052246942,-1794.0,0.00017753,2]
[404307559,1770052246952,-150.0,0.00017753,2]
[404307560,1770052246960,-500.0,0.00017753,2]
[404307561,1770052246971,-500.0,0.00017753,2]